[Event "*** SCC Grand Prix: Titled Tuesday Blitz"]
[Site "Chess.com"]
[Date "2020.10.06"]
[Round "1"]
[White "FairChess_on_YouTube"]
[Black "djano"]
[Result "1-0"]
[WhiteElo "2974"]
[BlackElo "2469"]
[TimeControl "180+1"]
[EndTime "10:07:22 PDT"]
[Termination "FairChess_on_YouTube won by resignation"]

1. e4 {[%clk 0:02:57.7]} 1... g6 {[%clk 0:03:00]} 2. d4 {[%clk 0:02:56.7]} 2...
Bg7 {[%clk 0:03:00.1]} 3. Nf3 {[%clk 0:02:53.5]} 3... d6 {[%clk 0:02:59.3]} 4.
Bc4 {[%clk 0:02:53.2]} 4... e6 {[%clk 0:02:58.1]} 5. O-O {[%clk 0:02:51.6]} 5...
Ne7 {[%clk 0:02:58.4]} 6. Bb3 {[%clk 0:02:49.8]} 6... O-O {[%clk 0:02:58]} 7. c3
{[%clk 0:02:49.6]} 7... b6 {[%clk 0:02:55.9]} 8. Re1 {[%clk 0:02:49.5]} 8... Bb7
{[%clk 0:02:55.9]} 9. Nbd2 {[%clk 0:02:49.2]} 9... Nd7 {[%clk 0:02:55.9]} 10.
Nf1 {[%clk 0:02:48.8]} 10... d5 {[%clk 0:02:48.3]} 11. e5 {[%clk 0:02:45.5]}
11... c5 {[%clk 0:02:48.5]} 12. Ng3 {[%clk 0:02:44.7]} 12... h6 {[%clk
0:02:41.7]} 13. h4 {[%clk 0:02:41.6]} 13... cxd4 {[%clk 0:02:39.6]} 14. cxd4
{[%clk 0:02:41.2]} 14... Rc8 {[%clk 0:02:35.8]} 15. Bf4 {[%clk 0:02:37.3]} 15...
Kh7 {[%clk 0:02:24.5]} 16. Bc2 {[%clk 0:02:26.2]} 16... Nf5 {[%clk 0:01:56.8]}
17. h5 {[%clk 0:02:14.7]} 17... Kg8 {[%clk 0:01:53.2]} 18. Nxf5 {[%clk
0:02:04.3]} 18... gxf5 {[%clk 0:01:49.7]} 19. Qd2 {[%clk 0:02:00.8]} 19... f6
{[%clk 0:01:40.4]} 20. Ba4 {[%clk 0:01:54.1]} 20... fxe5 {[%clk 0:01:37.3]} 21.
Bxd7 {[%clk 0:01:53.7]} 21... Qxd7 {[%clk 0:01:38.2]} 22. Bxe5 {[%clk
0:01:39.9]} 22... Rc6 {[%clk 0:01:24.6]} 23. Rac1 {[%clk 0:01:30]} 23... Rfc8
{[%clk 0:01:23.6]} 24. Rxc6 {[%clk 0:01:29.8]} 24... Rxc6 {[%clk 0:01:11.1]} 25.
Qf4 {[%clk 0:01:26.9]} 25... Bc8 {[%clk 0:01:01.1]} 26. Re3 {[%clk 0:01:15.4]}
26... Bf8 {[%clk 0:00:37.4]} 27. Qg3+ {[%clk 0:01:10.5]} 27... Bg7 {[%clk
0:00:26.7]} 28. Nh4 {[%clk 0:01:08.9]} 28... Rc1+ {[%clk 0:00:23.8]} 29. Kh2
{[%clk 0:01:08.5]} 29... Kf8 {[%clk 0:00:14.6]} 30. Ng6+ {[%clk 0:01:02.6]}
30... Ke8 {[%clk 0:00:14.6]} 31. Bxg7 {[%clk 0:00:49]} 31... Qxg7 {[%clk
0:00:15.5]} 32. Qd6 {[%clk 0:00:48.7]} 32... Qf6 {[%clk 0:00:14.2]} 33. g3
{[%clk 0:00:43]} 33... Bd7 {[%clk 0:00:13.8]} 34. Qxd5 {[%clk 0:00:31.8]} 34...
Kd8 {[%clk 0:00:11.5]} 35. Qd6 {[%clk 0:00:22.2]} 35... Kc8 {[%clk 0:00:08.7]}
36. Ne5 {[%clk 0:00:20.4]} 36... Be8 {[%clk 0:00:06.8]} 37. Rc3+ {[%clk
0:00:16.6]} 37... Rxc3 {[%clk 0:00:06.2]} 38. bxc3 {[%clk 0:00:17.5]} 38... Bf7
{[%clk 0:00:04.3]} 39. Qd7+ {[%clk 0:00:16.9]} 1-0

[Event "*** SCC Grand Prix: Titled Tuesday Blitz"]
[Site "Chess.com"]
[Date "2020.10.06"]
[Round "1"]
[White "BilodeauA"]
[Black "Miss_JJ20"]
[Result "1-0"]
[WhiteElo "2935"]
[BlackElo "2462"]
[TimeControl "180+1"]
[EndTime "10:07:22 PDT"]
[Termination "BilodeauA won on time"]

1. e4 {[%clk 0:03:00.9]} 1... e6 {[%clk 0:02:59]} 2. d4 {[%clk 0:02:59.1]} 2...
d5 {[%clk 0:02:58.4]} 3. Nd2 {[%clk 0:02:59.9]} 3... Nf6 {[%clk 0:02:58.3]} 4.
e5 {[%clk 0:03:00]} 4... Nfd7 {[%clk 0:02:58.9]} 5. f4 {[%clk 0:03:00.8]} 5...
c5 {[%clk 0:02:59.6]} 6. c3 {[%clk 0:03:01.4]} 6... Nc6 {[%clk 0:03:00.1]} 7.
Ndf3 {[%clk 0:03:02.1]} 7... Qb6 {[%clk 0:02:59.8]} 8. h4 {[%clk 0:03:02.5]}
8... cxd4 {[%clk 0:02:54.4]} 9. cxd4 {[%clk 0:03:02.5]} 9... Bb4+ {[%clk
0:02:55.1]} 10. Kf2 {[%clk 0:03:03.1]} 10... f6 {[%clk 0:02:55.7]} 11. Kg3
{[%clk 0:03:03.5]} 11... h5 {[%clk 0:02:09.5]} 12. Bd3 {[%clk 0:03:02.9]} 12...
Nf8 {[%clk 0:02:09.4]} 13. Ne2 {[%clk 0:03:02.2]} 13... Bd7 {[%clk 0:02:09.6]}
14. a3 {[%clk 0:03:01.4]} 14... Be7 {[%clk 0:02:09.1]} 15. b4 {[%clk 0:03:01.1]}
15... O-O-O {[%clk 0:01:46.7]} 16. Bd2 {[%clk 0:03:01]} 16... Kb8 {[%clk
0:01:45.9]} 17. Bc3 {[%clk 0:03:01.3]} 17... Rc8 {[%clk 0:01:45.3]} 18. Qd2
{[%clk 0:03:01.3]} 18... Bd8 {[%clk 0:01:34.9]} 19. Rhb1 {[%clk 0:02:52.8]}
19... Rg8 {[%clk 0:01:04.9]} 20. a4 {[%clk 0:02:50.7]} 20... g5 {[%clk
0:00:55.4]} 21. hxg5 {[%clk 0:02:49.1]} 21... fxg5 {[%clk 0:00:56.3]} 22. fxg5
{[%clk 0:02:49.5]} 22... Bxg5 {[%clk 0:00:35.2]} 23. Nxg5 {[%clk 0:02:48.3]}
23... Qd8 {[%clk 0:00:35.9]} 24. Kh4 {[%clk 0:02:31.8]} 24... Ne7 {[%clk
0:00:35.6]} 25. Kh3 {[%clk 0:02:17.3]} 25... Nf5 {[%clk 0:00:17.4]} 26. Nf3
{[%clk 0:02:12.4]} 26... h4 {[%clk 0:00:14.9]} 27. Rf1 {[%clk 0:01:15.7]} 27...
Qe7 {[%clk 0:00:09.4]} 28. Bxf5 {[%clk 0:00:59.2]} 28... exf5 {[%clk 0:00:10.3]}
29. Nf4 {[%clk 0:01:00]} 29... Rg3+ {[%clk 0:00:08.6]} 30. Kh2 {[%clk
0:01:00.4]} 30... Be6 {[%clk 0:00:06.9]} 31. b5 {[%clk 0:00:57.6]} 31... Ng6
{[%clk 0:00:05.9]} 32. Bb4 {[%clk 0:00:55.2]} 32... Qf7 {[%clk 0:00:05.4]} 33.
Bd6+ {[%clk 0:00:54.7]} 33... Ka8 {[%clk 0:00:05.3]} 34. Rac1 {[%clk 0:00:52.4]}
34... Rg8 {[%clk 0:00:05.5]} 35. Rf2 {[%clk 0:00:44.7]} 35... h3 {[%clk
0:00:03.6]} 36. Kxg3 {[%clk 0:00:37.8]} 36... Nxe5+ {[%clk 0:00:02.8]} 37. Kh2
{[%clk 0:00:30.6]} 37... hxg2 {[%clk 0:00:03.2]} 38. Bxe5 {[%clk 0:00:18.6]}
38... g1=Q+ {[%clk 0:00:02.3]} 39. Nxg1 {[%clk 0:00:18]} 39... Qh7+ {[%clk
0:00:03.2]} 40. Ngh3 {[%clk 0:00:18.6]} 1-0

[Event "*** SCC Grand Prix: Titled Tuesday Blitz"]
[Site "Chess.com"]
[Date "2020.10.06"]
[Round "1"]
[White "Carnivoras"]
[Black "SHIVACalypso"]
[Result "1-0"]
[WhiteElo "2672"]
[BlackElo "2354"]
[TimeControl "180+1"]
[EndTime "10:07:23 PDT"]
[Termination "Carnivoras won by resignation"]

1. d4 {[%clk 0:03:00.9]} 1... e6 {[%clk 0:02:59.6]} 2. c4 {[%clk 0:03:01.4]}
2... Nf6 {[%clk 0:02:59.7]} 3. Nc3 {[%clk 0:03:02]} 3... Bb4 {[%clk 0:03:00]} 4.
Qc2 {[%clk 0:03:01.7]} 4... b6 {[%clk 0:02:59.4]} 5. e4 {[%clk 0:03:00.1]} 5...
c5 {[%clk 0:02:57.2]} 6. d5 {[%clk 0:03:00.1]} 6... Qe7 {[%clk 0:02:56.7]} 7.
Ne2 {[%clk 0:02:57.5]} 7... exd5 {[%clk 0:02:54]} 8. exd5 {[%clk 0:02:56.9]}
8... d6 {[%clk 0:02:50.8]} 9. Bd2 {[%clk 0:02:54]} 9... O-O {[%clk 0:02:49.1]}
10. O-O-O {[%clk 0:02:35.1]} 10... Nbd7 {[%clk 0:02:37.7]} 11. Ng3 {[%clk
0:02:31.4]} 11... a6 {[%clk 0:02:03.2]} 12. Nf5 {[%clk 0:02:24.3]} 12... Qd8
{[%clk 0:01:51.2]} 13. Nxd6 {[%clk 0:02:24.1]} 13... Ne5 {[%clk 0:01:34.9]} 14.
Nxc8 {[%clk 0:02:21.3]} 14... Rxc8 {[%clk 0:01:35.8]} 15. h3 {[%clk 0:02:14.9]}
15... Re8 {[%clk 0:01:25.8]} 16. f4 {[%clk 0:02:14.5]} 16... Ng6 {[%clk
0:01:18.9]} 17. Bd3 {[%clk 0:02:09.3]} 17... b5 {[%clk 0:01:12.3]} 18. g4 {[%clk
0:01:26.5]} 18... bxc4 {[%clk 0:01:09.2]} 19. Bxc4 {[%clk 0:01:18.5]} 19... Bxc3
{[%clk 0:01:05.1]} 20. Bxc3 {[%clk 0:01:18.1]} 20... Ne4 {[%clk 0:00:42.3]} 21.
f5 {[%clk 0:01:06.8]} 21... Nf4 {[%clk 0:00:30.8]} 22. Rhe1 {[%clk 0:00:50.4]}
22... Nxc3 {[%clk 0:00:12.7]} 23. Qxc3 {[%clk 0:00:51.3]} 23... Qd6 {[%clk
0:00:05.2]} 24. Kb1 {[%clk 0:00:46.8]} 24... f6 {[%clk 0:00:04.6]} 25. Qg3
{[%clk 0:00:41.7]} 25... Rcd8 {[%clk 0:00:01.8]} 26. g5 {[%clk 0:00:23.6]} 26...
fxg5 {[%clk 0:00:01.7]} 27. Qxg5 {[%clk 0:00:22.9]} 27... Qh6 {[%clk 0:00:01.9]}
28. Qxh6 {[%clk 0:00:21.2]} 28... gxh6 {[%clk 0:00:02.8]} 29. d6+ {[%clk
0:00:20.6]} 29... Kg7 {[%clk 0:00:02.2]} 30. Rxe8 {[%clk 0:00:20.3]} 30... Rxe8
{[%clk 0:00:03.1]} 31. Bxa6 {[%clk 0:00:20.8]} 31... Rd8 {[%clk 0:00:03.3]} 32.
h4 {[%clk 0:00:20.2]} 32... Kf6 {[%clk 0:00:03.8]} 33. d7 {[%clk 0:00:19.8]}
33... Kxf5 {[%clk 0:00:03.9]} 34. Bc8 {[%clk 0:00:20.4]} 34... Ne6 {[%clk
0:00:04.1]} 35. Rd5+ {[%clk 0:00:19]} 35... Kf6 {[%clk 0:00:04.2]} 36. Rd6
{[%clk 0:00:18.6]} 36... Ke7 {[%clk 0:00:04.2]} 37. Rc6 {[%clk 0:00:18.7]} 37...
Nf8 {[%clk 0:00:03.4]} 38. Rxc5 {[%clk 0:00:17.5]} 38... Nxd7 {[%clk 0:00:03.9]}
39. Rc7 {[%clk 0:00:17.8]} 39... Kd6 {[%clk 0:00:04.2]} 40. Rxd7+ {[%clk
0:00:18]} 40... Rxd7 {[%clk 0:00:04.7]} 41. Bxd7 {[%clk 0:00:18.9]} 41... Kxd7
{[%clk 0:00:05]} 42. a4 {[%clk 0:00:19.8]} 42... Ke6 {[%clk 0:00:05.9]} 43. a5
{[%clk 0:00:20.2]} 43... Kf5 {[%clk 0:00:06.8]} 44. a6 {[%clk 0:00:20.8]} 44...
Kg4 {[%clk 0:00:07.7]} 45. a7 {[%clk 0:00:21.7]} 1-0

[Event "*** SCC Grand Prix: Titled Tuesday Blitz"]
[Site "Chess.com"]
[Date "2020.10.06"]
[Round "1"]
[White "Margency"]
[Black "JuliaEfremova"]
[Result "1-0"]
[WhiteElo "2647"]
[BlackElo "2339"]
[TimeControl "180+1"]
[EndTime "10:07:23 PDT"]
[Termination "Margency won by resignation"]

1. e4 {[%clk 0:03:00.9]} 1... d5 {[%clk 0:02:58.8]} 2. exd5 {[%clk 0:02:59.9]}
2... Qxd5 {[%clk 0:02:59.7]} 3. Nc3 {[%clk 0:03:00.4]} 3... Qa5 {[%clk
0:02:59.5]} 4. d4 {[%clk 0:03:00.6]} 4... Nf6 {[%clk 0:02:59.7]} 5. Nf3 {[%clk
0:02:58.4]} 5... Bg4 {[%clk 0:02:58.9]} 6. h3 {[%clk 0:02:50.7]} 6... Bh5 {[%clk
0:02:53.6]} 7. g4 {[%clk 0:02:49.9]} 7... Bg6 {[%clk 0:02:53.7]} 8. Ne5 {[%clk
0:02:50.4]} 8... Nbd7 {[%clk 0:02:53.4]} 9. Nc4 {[%clk 0:02:50]} 9... Qa6 {[%clk
0:02:28.9]} 10. Bf4 {[%clk 0:02:34.1]} 10... Qe6+ {[%clk 0:01:57.9]} 11. Ne3
{[%clk 0:02:32.6]} 11... O-O-O {[%clk 0:01:36.2]} 12. Bg2 {[%clk 0:02:16.8]}
12... a6 {[%clk 0:01:17.7]} 13. Qf3 {[%clk 0:02:09]} 13... Qb6 {[%clk
0:01:08.9]} 14. Nc4 {[%clk 0:01:56.7]} 14... Qa7 {[%clk 0:01:08.3]} 15. Na5
{[%clk 0:01:43.9]} 15... e5 {[%clk 0:00:44.6]} 16. dxe5 {[%clk 0:01:33.5]} 16...
Bb4 {[%clk 0:00:43.9]} 17. Qxb7+ {[%clk 0:01:32.3]} 17... Qxb7 {[%clk 0:00:43]}
18. Bxb7+ {[%clk 0:01:32.4]} 18... Kb8 {[%clk 0:00:43.3]} 19. Nc6+ {[%clk
0:01:23.8]} 19... Kxb7 {[%clk 0:00:44.2]} 20. Nxd8+ {[%clk 0:01:24.2]} 20...
Rxd8 {[%clk 0:00:44.1]} 21. exf6 {[%clk 0:01:24.5]} 21... Bxc3+ {[%clk
0:00:41.5]} 22. bxc3 {[%clk 0:01:24.3]} 22... Nxf6 {[%clk 0:00:42.4]} 23. Rb1+
{[%clk 0:01:17.6]} 23... Kc6 {[%clk 0:00:42.6]} 24. O-O {[%clk 0:01:13.9]} 24...
Bxc2 {[%clk 0:00:40.8]} 25. Rb2 {[%clk 0:01:13]} 25... Be4 {[%clk 0:00:38.8]}
26. c4 {[%clk 0:01:09.7]} 26... Rd3 {[%clk 0:00:32.7]} 27. Rb3 {[%clk
0:01:07.3]} 27... Rd4 {[%clk 0:00:30.8]} 28. Rc3 {[%clk 0:01:03.1]} 28... Nd7
{[%clk 0:00:28.1]} 29. Be3 {[%clk 0:00:59]} 29... Rd6 {[%clk 0:00:27.6]} 30. f3
{[%clk 0:00:58.3]} 30... Bg6 {[%clk 0:00:25.4]} 31. Kf2 {[%clk 0:00:54.5]} 31...
f6 {[%clk 0:00:23]} 32. Bf4 {[%clk 0:00:52.6]} 32... Re6 {[%clk 0:00:21.4]} 33.
Re1 {[%clk 0:00:52.1]} 33... Rxe1 {[%clk 0:00:21.1]} 34. Kxe1 {[%clk 0:00:52.3]}
34... Nc5 {[%clk 0:00:22]} 35. Be3 {[%clk 0:00:48.8]} 35... Ne6 {[%clk 0:00:21]}
36. Kf2 {[%clk 0:00:48.4]} 36... Bf7 {[%clk 0:00:20.1]} 37. f4 {[%clk
0:00:46.6]} 37... Nf8 {[%clk 0:00:20.5]} 38. f5 {[%clk 0:00:46.8]} 38... Nd7
{[%clk 0:00:21.4]} 39. Bd4 {[%clk 0:00:46.6]} 39... g6 {[%clk 0:00:17.7]} 40.
Ke3 {[%clk 0:00:42.4]} 40... gxf5 {[%clk 0:00:17]} 41. gxf5 {[%clk 0:00:43.3]}
41... Bh5 {[%clk 0:00:17.6]} 42. Ke4 {[%clk 0:00:41.7]} 42... a5 {[%clk
0:00:16.6]} 43. Ra3 {[%clk 0:00:38.6]} 43... Bf7 {[%clk 0:00:16.8]} 44. Kd3
{[%clk 0:00:34]} 44... Nb6 {[%clk 0:00:15.9]} 45. Rxa5 {[%clk 0:00:29.6]} 45...
Nxc4 {[%clk 0:00:15.3]} 46. Rc5+ {[%clk 0:00:28.6]} 46... Kd6 {[%clk 0:00:14.7]}
47. Rxc4 {[%clk 0:00:28.8]} 47... Bxc4+ {[%clk 0:00:14.8]} 48. Kxc4 {[%clk
0:00:29.7]} 48... Kc6 {[%clk 0:00:15.1]} 49. Bxf6 {[%clk 0:00:29.8]} 1-0

[Event "*** SCC Grand Prix: Titled Tuesday Blitz"]
[Site "Chess.com"]
[Date "2020.10.06"]
[Round "1"]
[White "MarceloPlaya"]
[Black "AleksibFan"]
[Result "0-1"]
[WhiteElo "2258"]
[BlackElo "2573"]
[TimeControl "180+1"]
[EndTime "10:07:24 PDT"]
[Termination "AleksibFan won on time"]

1. e4 {[%clk 0:02:58]} 1... d5 {[%clk 0:02:59.2]} 2. exd5 {[%clk 0:02:55.9]}
2... Qxd5 {[%clk 0:03:00.1]} 3. Nc3 {[%clk 0:02:54]} 3... Qd6 {[%clk 0:03:00.2]}
4. d4 {[%clk 0:02:52.5]} 4... Nf6 {[%clk 0:03:00.3]} 5. Nge2 {[%clk 0:02:51.5]}
5... Bg4 {[%clk 0:02:59.1]} 6. f3 {[%clk 0:02:37.5]} 6... Bh5 {[%clk 0:02:58.8]}
7. Bf4 {[%clk 0:02:36.4]} 7... Qd7 {[%clk 0:02:58.7]} 8. Qd2 {[%clk 0:02:33.8]}
8... e6 {[%clk 0:02:58.6]} 9. O-O-O {[%clk 0:02:32.6]} 9... Bb4 {[%clk
0:02:37.2]} 10. Kb1 {[%clk 0:02:21.4]} 10... Nc6 {[%clk 0:02:35.7]} 11. Qe3
{[%clk 0:02:02.4]} 11... O-O-O {[%clk 0:02:35.2]} 12. g4 {[%clk 0:01:56.4]}
12... Bg6 {[%clk 0:02:33.2]} 13. Bg2 {[%clk 0:01:56.2]} 13... Rhe8 {[%clk
0:02:25.5]} 14. h4 {[%clk 0:01:53.2]} 14... h5 {[%clk 0:02:22.2]} 15. g5 {[%clk
0:01:51.2]} 15... Nd5 {[%clk 0:02:19.5]} 16. Nxd5 {[%clk 0:01:50.2]} 16... exd5
{[%clk 0:02:20.4]} 17. Qf2 {[%clk 0:01:23.1]} 17... Na5 {[%clk 0:02:09.2]} 18.
Bh3 {[%clk 0:01:09.1]} 18... Bf5 {[%clk 0:02:07.4]} 19. Bxf5 {[%clk 0:01:07.6]}
19... Qxf5 {[%clk 0:02:08.3]} 20. Bd2 {[%clk 0:01:01.3]} 20... Bxd2 {[%clk
0:02:02.4]} 21. Rxd2 {[%clk 0:01:00.8]} 21... Nc4 {[%clk 0:02:02]} 22. Rd3
{[%clk 0:01:00.6]} 22... g6 {[%clk 0:01:44]} 23. Ng3 {[%clk 0:00:59.1]} 23...
Qf4 {[%clk 0:01:41]} 24. Ne2 {[%clk 0:00:47.4]} 24... Qf5 {[%clk 0:01:40.4]} 25.
Ng3 {[%clk 0:00:45.8]} 25... Qf4 {[%clk 0:01:39.4]} 26. Ne2 {[%clk 0:00:45.1]}
26... Qd6 {[%clk 0:01:39.6]} 27. b3 {[%clk 0:00:37.2]} 27... Na3+ {[%clk
0:01:22.6]} 28. Kb2 {[%clk 0:00:36.1]} 28... Nb5 {[%clk 0:01:20.7]} 29. a4
{[%clk 0:00:32.3]} 29... Qa3+ {[%clk 0:01:15.4]} 30. Kb1 {[%clk 0:00:31]} 30...
Nd6 {[%clk 0:01:10.9]} 31. Nc3 {[%clk 0:00:27.5]} 31... c6 {[%clk 0:01:04.3]}
32. Qd2 {[%clk 0:00:23.5]} 32... Nf5 {[%clk 0:01:00.5]} 33. Na2 {[%clk
0:00:16.9]} 33... Qd6 {[%clk 0:00:51.4]} 34. Qa5 {[%clk 0:00:15.6]} 34... Kb8
{[%clk 0:00:49.7]} 35. b4 {[%clk 0:00:12.8]} 35... Qc7 {[%clk 0:00:43.6]} 36.
Qc5 {[%clk 0:00:11.8]} 36... Re6 {[%clk 0:00:32.5]} 37. Nc3 {[%clk 0:00:10]}
37... b6 {[%clk 0:00:30.6]} 38. Nxd5 {[%clk 0:00:07.3]} 38... cxd5 {[%clk
0:00:24.8]} 39. Qb5 {[%clk 0:00:07.3]} 39... Qc4 {[%clk 0:00:23.1]} 0-1

[Event "*** SCC Grand Prix: Titled Tuesday Blitz"]
[Site "Chess.com"]
[Date "2020.10.06"]
[Round "1"]
[White "flexova"]
[Black "severomorskij"]
[Result "0-1"]
[WhiteElo "2392"]
[BlackElo "2759"]
[TimeControl "180+1"]
[EndTime "10:07:26 PDT"]
[Termination "severomorskij won by resignation"]

1. e4 {[%clk 0:03:00.9]} 1... c5 {[%clk 0:02:58.9]} 2. Nc3 {[%clk 0:03:00]} 2...
Nc6 {[%clk 0:02:57.2]} 3. Bb5 {[%clk 0:02:59.2]} 3... Nd4 {[%clk 0:02:56.3]} 4.
Nf3 {[%clk 0:02:58.8]} 4... e6 {[%clk 0:02:56.5]} 5. O-O {[%clk 0:02:57.1]} 5...
Ne7 {[%clk 0:02:55.8]} 6. Nxd4 {[%clk 0:02:56.2]} 6... cxd4 {[%clk 0:02:56.2]}
7. Ne2 {[%clk 0:02:56.9]} 7... a6 {[%clk 0:02:56.4]} 8. Ba4 {[%clk 0:02:56.4]}
8... b5 {[%clk 0:02:55.4]} 9. Bb3 {[%clk 0:02:56.3]} 9... Nc6 {[%clk 0:02:55.6]}
10. d3 {[%clk 0:02:54]} 10... Be7 {[%clk 0:02:48.2]} 11. a4 {[%clk 0:02:53]}
11... b4 {[%clk 0:02:46.9]} 12. f4 {[%clk 0:02:51.3]} 12... O-O {[%clk
0:02:46.3]} 13. Qe1 {[%clk 0:02:50.5]} 13... Bb7 {[%clk 0:02:37.5]} 14. Qg3
{[%clk 0:02:47.4]} 14... Na5 {[%clk 0:02:23.9]} 15. f5 {[%clk 0:02:42.9]} 15...
Nxb3 {[%clk 0:02:16.9]} 16. cxb3 {[%clk 0:02:43.8]} 16... Kh8 {[%clk 0:02:13.8]}
17. Kh1 {[%clk 0:02:32.1]} 17... Qb6 {[%clk 0:01:44.4]} 18. Bf4 {[%clk
0:02:25.3]} 18... f6 {[%clk 0:01:37]} 19. Bc7 {[%clk 0:02:11.8]} 19... Qa7
{[%clk 0:01:31.9]} 20. a5 {[%clk 0:02:11.8]} 20... e5 {[%clk 0:01:24.8]} 21.
Rac1 {[%clk 0:01:52.9]} 21... Bc6 {[%clk 0:01:14.7]} 22. Bb6 {[%clk 0:01:51.5]}
22... Qb7 {[%clk 0:01:15.3]} 23. h4 {[%clk 0:01:44.5]} 23... Rac8 {[%clk
0:01:14.4]} 24. h5 {[%clk 0:01:41.1]} 24... h6 {[%clk 0:01:09.4]} 25. Ng1 {[%clk
0:01:41.1]} 25... d5 {[%clk 0:01:08.8]} 26. Nf3 {[%clk 0:01:24.8]} 26... dxe4
{[%clk 0:01:01.6]} 27. Nh4 {[%clk 0:01:13.8]} 27... Be8 {[%clk 0:00:50.3]} 28.
dxe4 {[%clk 0:00:31.6]} 28... Bxh5 {[%clk 0:00:45.9]} 29. Rxc8 {[%clk
0:00:15.2]} 29... Rxc8 {[%clk 0:00:43.2]} 30. Ng6+ {[%clk 0:00:14.1]} 30... Bxg6
{[%clk 0:00:42.5]} 31. Qxg6 {[%clk 0:00:15]} 31... Qxe4 {[%clk 0:00:38.7]} 32.
Rf3 {[%clk 0:00:15.7]} 32... Bd6 {[%clk 0:00:17.9]} 33. Rh3 {[%clk 0:00:15.5]}
33... Rc1+ {[%clk 0:00:16.2]} 34. Kh2 {[%clk 0:00:15.2]} 34... Qf4+ {[%clk
0:00:16.5]} 35. Rg3 {[%clk 0:00:14.7]} 35... Qh4+ {[%clk 0:00:14.8]} 36. Rh3
{[%clk 0:00:14.9]} 36... e4+ {[%clk 0:00:14]} 37. g3 {[%clk 0:00:14.5]} 37...
Rc2+ {[%clk 0:00:12.3]} 38. Kg1 {[%clk 0:00:14.7]} 38... Qxh3 {[%clk 0:00:10.4]}
39. Qe8+ {[%clk 0:00:14.6]} 39... Bf8 {[%clk 0:00:10.5]} 40. Qxf8+ {[%clk
0:00:13.3]} 40... Kh7 {[%clk 0:00:10.5]} 0-1

[Event "*** SCC Grand Prix: Titled Tuesday Blitz"]
[Site "Chess.com"]
[Date "2020.10.06"]
[Round "1"]
[White "mr65"]
[Black "pedromartinez91"]
[Result "0-1"]
[WhiteElo "2159"]
[BlackElo "2524"]
[TimeControl "180+1"]
[EndTime "10:07:28 PDT"]
[Termination "pedromartinez91 won by checkmate"]

1. e4 {[%clk 0:02:59.9]} 1... e6 {[%clk 0:02:58]} 2. d4 {[%clk 0:02:58.7]} 2...
d5 {[%clk 0:02:58.4]} 3. Nc3 {[%clk 0:02:58.6]} 3... Nf6 {[%clk 0:02:58.2]} 4.
e5 {[%clk 0:02:57.5]} 4... Nfd7 {[%clk 0:02:58.7]} 5. Nce2 {[%clk 0:02:55]} 5...
c5 {[%clk 0:02:59.1]} 6. c3 {[%clk 0:02:55]} 6... Nc6 {[%clk 0:02:57.1]} 7. f4
{[%clk 0:02:54.8]} 7... Qa5 {[%clk 0:02:57.4]} 8. Nf3 {[%clk 0:02:52.9]} 8... b5
{[%clk 0:02:52.7]} 9. g3 {[%clk 0:02:52.1]} 9... b4 {[%clk 0:02:52.4]} 10. Bd2
{[%clk 0:02:44.5]} 10... bxc3 {[%clk 0:02:40.8]} 11. bxc3 {[%clk 0:02:43.5]}
11... cxd4 {[%clk 0:02:40.6]} 12. cxd4 {[%clk 0:02:42.9]} 12... Bb4 {[%clk
0:02:41]} 13. Bxb4 {[%clk 0:02:38.3]} 13... Nxb4 {[%clk 0:02:33.7]} 14. Kf2
{[%clk 0:02:32.8]} 14... Ba6 {[%clk 0:02:31.2]} 15. Qd2 {[%clk 0:02:23]} 15...
Rc8 {[%clk 0:02:09.9]} 16. Rb1 {[%clk 0:01:41.2]} 16... Nd3+ {[%clk 0:01:43.7]}
17. Kg2 {[%clk 0:01:31.5]} 17... Qxd2 {[%clk 0:01:41]} 18. Nxd2 {[%clk
0:01:30.7]} 18... Rc2 {[%clk 0:01:39.5]} 19. Nf3 {[%clk 0:01:09.6]} 19... Nb6
{[%clk 0:01:01.3]} 20. Ne1 {[%clk 0:00:54.8]} 20... Rxa2 {[%clk 0:00:56]} 21.
Nxd3 {[%clk 0:00:51.5]} 21... Bxd3 {[%clk 0:00:56.9]} 22. Re1 {[%clk 0:00:49.1]}
22... Be4+ {[%clk 0:00:56.9]} 23. Kg1 {[%clk 0:00:47.1]} 23... Bxh1 {[%clk
0:00:53]} 24. Kxh1 {[%clk 0:00:46.7]} 24... Ke7 {[%clk 0:00:49.3]} 25. Bh3
{[%clk 0:00:44.5]} 25... Rc8 {[%clk 0:00:47.6]} 26. f5 {[%clk 0:00:42.9]} 26...
Rcc2 {[%clk 0:00:47.1]} 27. Nf4 {[%clk 0:00:35.6]} 27... Rxh2+ {[%clk 0:00:26]}
28. Kg1 {[%clk 0:00:34.9]} 28... exf5 {[%clk 0:00:17]} 29. Bg2 {[%clk
0:00:34.5]} 29... Rhxg2+ {[%clk 0:00:13.6]} 30. Nxg2 {[%clk 0:00:33.2]} 30... g5
{[%clk 0:00:14.1]} 31. Rc1 {[%clk 0:00:27.4]} 31... Nc4 {[%clk 0:00:13.4]} 32.
Rb1 {[%clk 0:00:24.4]} 32... Rb2 {[%clk 0:00:13.1]} 33. Rf1 {[%clk 0:00:19.7]}
33... a5 {[%clk 0:00:11.8]} 34. Rxf5 {[%clk 0:00:18.6]} 34... a4 {[%clk
0:00:11.8]} 35. Rxg5 {[%clk 0:00:18.1]} 35... a3 {[%clk 0:00:11.7]} 36. Nf4
{[%clk 0:00:17.5]} 36... a2 {[%clk 0:00:11]} 37. Nxd5+ {[%clk 0:00:17.4]} 37...
Kd7 {[%clk 0:00:09.8]} 38. Nf6+ {[%clk 0:00:16]} 38... Kc7 {[%clk 0:00:07.8]}
39. e6 {[%clk 0:00:14.1]} 39... a1=Q# {[%clk 0:00:07.2]} 0-1